fUSD/lending_fUSD_20240803
["ID","MTS","AMOUNT","RATE_DAILY","PERIOD"]
[333987745,1722666713045,-500.0,0.0001726,2]
[333987746,1722666713060,-500.0,0.0001726,2]
[333987747,1722666713075,-500.0,0.0001726,2]
[333987748,1722666713090,-1488.46,0.0001726,2]
[333987749,1722666713105,-500.0,0.0001726,2]
[333987750,1722666713121,-560.97,0.0001726,2]
[333987751,1722666713135,-500.0,0.0001726,2]
[333987752,1722666713150,-505.84810962,0.0001726,2]
[333987753,1722666713164,-500.0,0.0001726,2]
[333987754,1722666713188,-920.3,0.0001726,2]
[333987755,1722666713202,-151.0,0.0001726,2]
[333987756,1722666713218,-500.0,0.0001726,2]
[333987757,1722666713232,-151.0,0.0001726,2]
[333987758,1722666713247,-3017.99,0.0001726,2]
[333987759,1722666713261,-500.0,0.0001726,2]
[333987760,1722666713276,-1976.61,0.0001726,2]
[333987761,1722666713291,-980.35,0.0001726,2]
[333987762,1722666713306,-500.0,0.0001726,2]
[333987763,1722666713320,-2347.93,0.0001726,2]
[333987764,1722666713336,-500.0,0.0001726,2]
[333987765,1722666713351,-3028.02,0.0001726,2]
[333987766,1722666713366,-500.0,0.0001726,2]
[333987767,1722666713381,-1182.86,0.0001726,2]
[333987768,1722666713397,-1315.97,0.0001726,2]
[333987769,1722666713412,-663.52,0.0001726,2]
[333987770,1722666713427,-1429.57,0.0001726,2]
[333987771,1722666713442,-500.0,0.0001726,2]
[333987772,1722666713457,-1009.6,0.0001726,2]
[333987773,1722666713473,-535.59,0.0001726,2]
[333987774,1722666713488,-504.44870908,0.0001726,2]
[333987775,1722666713502,-2404.697468,0.0001726,2]
[333987776,1722666713517,-2404.697468,0.0001726,2]
[333987777,1722666713532,-1659.64,0.0001726,2]
[333987778,1722666713547,-500.0,0.0001726,2]
[333987779,1722666713563,-2820.52,0.0001726,2]
[333987780,1722666713579,-2112.36,0.0001726,2]
[333987781,1722666713595,-4031.55,0.0001726,2]
[333987782,1722666713610,-2096.17,0.0001726,2]
[333987783,1722666713625,-2404.697468,0.0001726,2]
[333987784,1722666713644,-1049.02,0.0001726,2]
[333987785,1722666713659,-2404.697468,0.0001726,2]
[333987786,1722666713673,-507.24587434,0.0001726,2]
[333987787,1722666713689,-500.0,0.0001726,2]
[333987788,1722666713704,-10150.27,0.0001726,2]
[333987789,1722666713722,-500.0,0.0001726,2]
[333987790,1722666713737,-1206.49,0.0001726,2]
[333987791,1722666713753,-1122.59,0.0001726,2]
[333987792,1722666713767,-502.19329032,0.0001726,2]
[333987793,1722666713781,-576.06,0.0001726,2]
[333987794,1722666713796,-1726.0,0.0001726,2]
[333987795,1722666713812,-504.07366212,0.0001726,2]
[333987796,1722666713828,-515.31859603,0.0001726,2]
[333987797,1722666713844,-793.05,0.0001726,2]
[333987798,1722666713860,-177.049888,0.0001726,2]
[333987799,1722666713875,-3672.81,0.0001726,2]
[333987800,1722666713890,-177.049888,0.0001726,2]
[333987801,1722666713904,-3286.16,0.0001726,2]
[333987802,1722666713920,-1612.0,0.0001726,2]
[333987803,1722666713936,-505.50703316,0.0001726,2]
[333987804,1722666713952,-3453.65,0.0001726,2]
[333987805,1722666713968,-500.0,0.0001726,2]
[333987806,1722666713983,-15160.97,0.0001726,2]
[333987807,1722666713999,-500.0,0.0001726,2]
[333987808,1722666714014,-1516.13,0.0001726,2]
[333987809,1722666714028,-1177.76,0.0001726,2]
[333987810,1722666714044,-228.042973,0.0001726,2]
[333987811,1722666714058,-228.042973,0.0001726,2]
[333987812,1722666714072,-1029.84,0.0001726,2]
[333987813,1722666714087,-500.0,0.0001726,2]
[333987814,1722666714103,-177.049888,0.0001726,2]
[333987815,1722666714117,-681.33,0.0001726,2]
[333987816,1722666714133,-177.049888,0.0001726,2]
[333987817,1722666714150,-151.0,0.0001726,2]
[333987818,1722666714165,-7716.14,0.0001726,2]
[333987819,1722666714180,-151.0,0.0001726,2]
[333987820,1722666714195,-500.0,0.0001726,2]
[333987821,1722666714210,-2110.03,0.0001726,2]
[333987822,1722666714226,-291.538366,0.0001726,2]
[333987823,1722666714239,-228.042973,0.0001726,2]
[333987824,1722666714249,-1577.4,0.0001726,2]
[333987825,1722666714258,-291.538366,0.0001726,2]
[333987826,1722666714268,-228.042973,0.0001726,2]
[333987827,1722666714277,-5511.15,0.0001726,2]
[333987828,1722666714287,-500.0,0.0001726,2]
[333987829,1722666714297,-503.94977265,0.0001726,2]
[333987830,1722666714307,-797.55,0.0001726,2]
[333987831,1722666714316,-500.0,0.0001726,2]
[333987832,1722666714326,-1050.57,0.0001726,2]
[333987833,1722666714763,-291.538366,0.0001726,2]
[333987834,1722666714791,-2534.68,0.0001726,2]
[333987835,1722666714808,-291.538366,0.0001726,2]
[333987836,1722666714834,-304.28253494,0.0001726,2]
[333987837,1722666714847,-500.0,0.0001726,2]
[333987838,1722666714857,-2306.35,0.0001726,2]
[333987839,1722666714866,-3191.49,0.0001726,2]
[333987840,1722666714875,-287.95655988,0.0001726,2]
[333987841,1722666714885,-681.76,0.0001726,2]
[333987842,1722666714894,-500.0,0.0001726,2]
[333987843,1722666714903,-517.29,0.0001726,2]
[333987844,1722666714913,-2590.66,0.0001726,2]
[333987845,1722666714922,-500.0,0.0001726,2]
[333987846,1722666714932,-512.87485139,0.0001726,2]
[333987847,1722666714941,-2269.33,0.0001726,2]
[333987848,1722666714951,-500.0,0.0001726,2]
[333987849,1722666714968,-571.15,0.0001726,2]
[333987850,1722666714977,-4486.63,0.0001726,2]
[333987851,1722666714986,-1395.7,0.0001726,2]
[333987852,1722666714996,-500.0,0.0001726,2]
[333987853,1722666715005,-927.9,0.0001726,2]
[333987854,1722666715015,-2172.92,0.0001726,2]
[333987855,1722666715024,-642.08,0.0001726,2]
[333987856,1722666715034,-374.29429648,0.0001726,2]
[333987857,1722666715043,-500.0,0.0001726,2]
[333987858,1722666715052,-516.1242813,0.0001726,2]
[333987859,1722666715062,-1875.47,0.0001726,2]
[333987860,1722666715072,-500.0,0.0001726,2]
[333987861,1722666715081,-500.0,0.0001726,2]
[333987862,1722666715091,-551.94,0.0001726,2]
[333987863,1722666715100,-1703.59,0.0001726,2]
[333987864,1722666715110,-1746.66,0.0001726,2]
[333987865,1722666715120,-500.0,0.0001726,2]
[333987866,1722666715130,-784.82,0.0001726,2]
[333987867,1722666715140,-591.2,0.0001726,2]
[333987868,1722666715150,-849.08,0.0001726,2]
[333987869,1722666715159,-3768.21,0.0001726,2]
[333987870,1722666715169,-500.0,0.0001726,2]
[333987871,1722666715178,-500.0,0.0001726,2]
[333987872,1722666715187,-876.21,0.0001726,2]
[333987873,1722666715197,-400.0,0.0001726,2]
[333987874,1722666715206,-500.0,0.0001726,2]
[333987875,1722666715215,-1805.68,0.0001726,2]
[333987876,1722666715224,-3769.02,0.0001726,2]
[333987877,1722666715234,-2265.81,0.0001726,2]
[333987878,1722666715243,-500.0,0.0001726,2]
[333987879,1722666715253,-500.0,0.0001726,2]
[333987880,1722666715263,-824.9,0.0001726,2]
[333987881,1722666715272,-614.94,0.0001726,2]
[333987882,1722666715281,-503.88753246,0.0001726,2]
[333987883,1722666715291,-1540.49,0.0001726,2]
[333987884,1722666715300,-3464.14,0.0001726,2]
[333987885,1722666715309,-3761.09,0.0001726,2]
[333987886,1722666715319,-5639.15,0.0001726,2]
[333987887,1722666715328,-500.0,0.0001726,2]
[333987888,1722666715337,-2239.27,0.0001726,2]
[333987889,1722666715347,-617.86,0.0001726,2]
[333987890,1722666715356,-650.38,0.0001726,2]
[333987891,1722666715365,-991.2,0.0001726,2]
[333987892,1722666715375,-505.49840137,0.0001726,2]
[333987893,1722666715384,-3794.93,0.0001726,2]
[333987894,1722666715395,-500.0,0.0001726,2]
[333987895,1722666715404,-6154.67,0.0001726,2]
[333987896,1722666715413,-610.3,0.0001726,2]
[333987897,1722666715423,-1846.35,0.0001726,2]
[333987898,1722666715432,-2062.14,0.0001726,2]
[333987899,1722666715442,-7006.55,0.0001726,2]
[333987900,1722666715451,-500.0,0.0001726,2]
[333987901,1722666715461,-654.74,0.0001726,2]
[333987902,1722666715471,-500.0,0.0001726,2]
[333987903,1722666715480,-2260.06,0.0001726,2]
[333987904,1722666715489,-1671.01,0.0001726,2]
[333987905,1722666715499,-810.7,0.0001726,2]
[333987906,1722666715508,-2426.51,0.0001726,2]
[333987907,1722666715518,-500.0,0.0001726,2]
[333987908,1722666715527,-534.18944687,0.0001726,2]
[333987909,1722666715536,-9425.49,0.0001726,2]
[333987910,1722666715546,-1017.09,0.0001726,2]
[333987911,1722666715555,-500.0,0.0001726,2]
[333987912,1722666715564,-706.97,0.0001726,2]
[333987913,1722666715573,-9197.15,0.0001726,2]
[333987914,1722666715583,-917.582305,0.0001726,2]
[333987915,1722666715592,-1431.9,0.0001726,2]
[333987916,1722666715602,-18960.81,0.0001726,2]
[333987917,1722666715611,-500.0,0.0001726,2]
[333987918,1722666715620,-500.0,0.0001726,2]
[333987919,1722666715629,-500.0,0.0001726,2]
[333987920,1722666715639,-803.92,0.0001726,2]
[333987921,1722666715652,-2204.57,0.0001726,2]
[333987922,1722666715662,-506.22313249,0.0001726,2]
[333987923,1722666715671,-500.0,0.0001726,2]
[333987924,1722666715680,-666.06,0.0001726,2]
[333987925,1722666715690,-526.18858063,0.0001726,2]
[333987926,1722666715700,-684.75,0.0001726,2]
[333987927,1722666715714,-1958.7,0.0001726,2]
[333987928,1722666715723,-2126.17,0.0001726,2]
[333987929,1722666715733,-2113.7,0.0001726,2]
[333987930,1722666715743,-917.582305,0.0001726,2]
[333987931,1722666715752,-500.0,0.0001726,2]
[333987932,1722666715761,-876.59,0.0001726,2]
[333987933,1722666715770,-580.14,0.0001726,2]
[333987934,1722666715780,-628.9818,0.0001726,2]
[333987935,1722666715789,-628.9818,0.0001726,2]
[333987936,1722666715798,-3958.71,0.0001726,2]
[333987937,1722666715808,-1366.09,0.0001726,2]
[333987938,1722666715817,-500.0,0.0001726,2]
[333987939,1722666715827,-1636.82,0.0001726,2]
[333987940,1722666715837,-3068.73,0.0001726,2]
[333987941,1722666715846,-491.39952921,0.0001726,2]
[333987942,1722666715855,-628.9818,0.0001726,2]
[333987943,1722666715864,-628.9818,0.0001726,2]
[333987944,1722666715874,-500.0,0.0001726,2]
[333987945,1722666715883,-1915.63,0.0001726,2]
[333987946,1722666715893,-2609.6,0.0001726,2]
[333987947,1722666715903,-684.008137,0.0001726,2]
[333987948,1722666715912,-500.0,0.0001726,2]
[333987949,1722666715921,-465.41004695,0.0001726,2]
[333987950,1722666715931,-1156.97,0.0001726,2]
[333987951,1722666715940,-1837.83,0.0001726,2]
[333987952,1722666715949,-500.0,0.0001726,2]
[333987953,1722666715966,-735.07,0.0001726,2]
[333987954,1722666715978,-510.97141413,0.0001726,2]
[333987955,1722666715988,-583.63,0.0001726,2]
[333987956,1722666715997,-684.008141,0.0001726,2]
[333987957,1722666716007,-664.37,0.0001726,2]
[333987958,1722666716017,-2322.65,0.0001726,2]
[333987959,1722666716027,-651.05,0.0001726,2]
[333987960,1722666716035,-500.0,0.0001726,2]
[333987961,1722666716045,-1304.49,0.0001726,2]
[333987962,1722666716055,-500.0,0.0001726,2]
[333987963,1722666716064,-500.0,0.0001726,2]
[333987964,1722666716074,-1780.87,0.0001726,2]
[333987965,1722666716084,-3594.13,0.0001726,2]
[333987966,1722666716094,-1004.22,0.0001726,2]
[333987967,1722666716103,-500.0,0.0001726,2]
[333987968,1722666716114,-2603.67,0.0001726,2]
[333987969,1722666716124,-685.3,0.0001726,2]
[333987970,1722666716133,-1360.09,0.0001726,2]
[333987971,1722666716143,-726.19940663,0.0001726,2]
[333987972,1722666716153,-213.97,0.00017304,2]
[333987973,1722666716162,-152.15849651,0.00017315,2]
[333987974,1722666716171,-245.11283,0.0001733,2]
[333987975,1722666716181,-323.811851,0.0001733,2]
[333987976,1722666716190,-354.400775,0.0001733,2]
[333987977,1722666716199,-3715.052926,0.0001733,2]
[333987978,1722666716212,-14547.490637,0.0001733,2]
[333987979,1722666716222,-17206.65622,0.0001733,2]
[333987980,1722666716231,-207.752414,0.0001733,2]
[333987981,1722666716240,-840.837562,0.0001733,2]
[333987982,1722666716250,-651.656202,0.0001733,2]
[333987983,1722666716260,-1457.984716,0.0001733,2]
[333987984,1722666716270,-1393.789355,0.0001733,2]
[333987985,1722666716280,-2343.964015,0.0001733,2]
[333987986,1722666716289,-731.610229,0.0001733,2]
[333987987,1722666716298,-706.352109,0.0001733,2]
[333987988,1722666716308,-168.224889,0.0001733,2]
[333987989,1722666716317,-766.2961,0.0001733,2]
[333987990,1722666716327,-739.788836,0.0001733,2]
[333987991,1722666716337,-204.243847,0.0001733,2]
[333987992,1722666716346,-345.044234,0.0001733,2]
[333987993,1722666716355,-151.36556,0.0001733,2]
[333987994,1722666716365,-151.0,0.0001733,2]
[333987995,1722666716375,-980.506918,0.0001733,2]
[333987996,1722666716384,-164.92012,0.0001733,2]
[333987997,1722666716394,-980.506918,0.0001733,2]
[333987998,1722666716404,-164.92012,0.0001733,2]
[333987999,1722666716413,-151.0,0.0001733,2]
[333988000,1722666716423,-372.150765,0.0001733,2]
[333988001,1722666716433,-277.550375,0.0001733,2]
[333988002,1722666716444,-244.70937,0.0001733,2]
[333988003,1722666716457,-372.150765,0.0001733,2]
[333988004,1722666716467,-152.082932,0.0001733,2]
[333988005,1722666716476,-152.082932,0.0001733,2]
[333988006,1722666716486,-151.0,0.0001733,2]
[333988007,1722666716496,-151.0,0.0001733,2]
[333988008,1722666716506,-2130.919257,0.0001733,2]
[333988009,1722666716516,-2130.919257,0.0001733,2]
[333988010,1722666716526,-726.19940663,0.00017342,2]
[333988011,1722666716536,-1500.0,0.0001738,2]
[333988012,1722666716546,-1139.99604333,0.0001738,2]
[333988013,1722666716556,-726.19940663,0.00017397,2]
[333988014,1722666716566,-152.15849651,0.00017397,2]
[333988015,1722666716576,-1725.0,0.00017399,2]
[333988016,1722666716586,-1622.19894296,0.00017399,2]
[333988017,1722666716595,-1274.49304289,0.00017399,2]
[333988018,1722666716605,-1112.40214539,0.00017399,2]
[333988019,1722666716616,-203.0,0.0001746,2]
[333988020,1722666716625,-200.0,0.0001746,2]
[333988021,1722666716635,-200.0,0.0001746,2]
[333988022,1722666716649,-201.0,0.0001746,2]
[333988023,1722666716663,-215.0,0.0001746,2]
[333988024,1722666716673,-201.0,0.0001746,2]
[333988025,1722666716682,-700.0,0.0001747,2]
[333988026,1722666716692,-500.0,0.0001747,2]
[333988027,1722666716702,-82556.7972427,0.00017497,4]
[333988028,1722666716714,-151.0,0.00017497,2]
[333988029,1722666716724,-231.696466,0.00017497,2]
[333988030,1722666716734,-151.0,0.00017497,2]
[333988031,1722666716744,-231.696466,0.00017497,2]
[333988032,1722666716753,-151.0,0.00017497,2]
[333988033,1722666716763,-151.0,0.00017497,2]
[333988034,1722666716773,-151.0,0.00017497,2]
[333988035,1722666716782,-1018.959212,0.00017497,2]
[333988036,1722666716792,-1018.959212,0.00017497,2]
[333988037,1722666716801,-177.049888,0.00017497,2]
[333988038,1722666716810,-177.049896,0.00017497,2]
[333988039,1722666716820,-177.650107,0.00017497,2]
[333988040,1722666716830,-291.538366,0.00017497,2]
[333988041,1722666716839,-291.538356,0.00017497,2]
[333988042,1722666716848,-628.9818,0.00017497,2]
[333988043,1722666716858,-628.981793,0.00017497,2]
[333988044,1722666716868,-600.0,0.000175,2]
[333988045,1722666716877,-151.0,0.00017522,2]
[333988046,1722666716886,-151.0,0.00017522,2]
[333988047,1722666716895,-251.1632,0.00017522,2]
[333988048,1722666716905,-151.0,0.00017522,2]
[333988049,1722666716915,-151.0,0.00017522,2]
[333988050,1722666716925,-240.1021,0.00017522,2]
[333988051,1722666716935,-171.476512,0.00017522,2]
[333988052,1722666716945,-375.17576,0.00017522,2]
[333988053,1722666716956,-375.17576,0.00017522,2]
[333988054,1722666716966,-186.25837,0.00017522,2]
[333988055,1722666716975,-186.25837,0.00017522,2]
[333988056,1722666716985,-151.0,0.00017522,2]
[333988057,1722666716995,-182.933451,0.00017522,2]
[333988058,1722666717005,-165.983868,0.00017522,2]
[333988059,1722666717014,-182.933451,0.00017522,2]
[333988060,1722666717023,-196.885044,0.00017522,2]
[333988061,1722666717033,-165.983868,0.00017522,2]
[333988062,1722666717043,-302.276463,0.00017522,2]
[333988063,1722666717053,-196.885044,0.00017522,2]
[333988064,1722666717063,-302.276463,0.00017522,2]
[333988065,1722666717073,-151.0,0.00017522,2]
[333988066,1722666717083,-580.27499,0.00017522,2]
[333988067,1722666717092,-1247.970465,0.00017522,2]
[333988068,1722666717102,-174.26607,0.00017522,2]
[333988069,1722666717112,-580.27499,0.00017522,2]
[333988070,1722666717122,-1247.970465,0.00017522,2]
[333988071,1722666717132,-174.26607,0.00017522,2]
[333988072,1722666717142,-151.0,0.00017522,2]
[333988073,1722666717152,-151.0,0.00017522,2]
[333988074,1722666717162,-297.18638,0.00017522,2]
[333988075,1722666717172,-623.4473738,0.00017522,2]
[333988076,1722666717182,-13693.9405634,0.00017522,2]
[333988077,1722666717192,-177.7409675,0.00017522,2]
[333988078,1722666717202,-805.4652814,0.00017522,2]
[333988079,1722666717213,-335.2577937,0.00017522,2]
[333988080,1722666717223,-1238.22106518,0.00017533,2]
[333988081,1722666717233,-724.04449643,0.00017533,2]
[333988082,1722666717244,-151.0,0.00017534,2]
[333988083,1722666717254,-151.0,0.00017534,2]
[333988084,1722666717264,-500.0,0.00017534,2]
[333988085,1722666717274,-500.0,0.00017534,2]
[333988086,1722666717284,-215.63525138,0.00017534,2]
[333988087,1722666717294,-989.73,0.00017534,2]
[333988088,1722666717304,-788.91,0.00017534,2]
[333988089,1722666717315,-500.0,0.00017534,2]
[333988090,1722666717325,-500.0,0.00017534,2]
[333988091,1722666717335,-237.05,0.00017534,2]
[333988092,1722666717345,-237.05,0.00017534,2]
[333988093,1722666717355,-237.05,0.00017534,2]
[333988094,1722666717365,-237.05,0.00017534,2]
[333988095,1722666717375,-500.0,0.00017534,2]
[333988096,1722666717386,-788.504572,0.00017534,2]
[333988097,1722666717396,-788.504572,0.00017534,2]
[333988098,1722666717406,-500.0,0.00017534,2]
[333988099,1722666717420,-500.0,0.00017534,2]
[333988100,1722666717430,-151.0,0.00017534,2]
[333988101,1722666717441,-151.0,0.00017534,2]
[333988102,1722666717453,-500.0,0.00017534,2]
[333988103,1722666717469,-500.0,0.00017534,2]
[333988104,1722666717480,-467.55844052,0.00017534,2]
[333988105,1722666717493,-567.17,0.00017534,2]
[333988106,1722666717504,-518.83877828,0.00017534,2]
[333988107,1722666717514,-511.02660875,0.00017534,2]
[333988108,1722666717524,-500.0,0.00017534,2]
[333988109,1722666717534,-500.0,0.00017534,2]
[333988110,1722666717544,-500.0,0.00017534,2]
[333988111,1722666717555,-1103.75,0.00017534,2]
[333988112,1722666717565,-1066.77,0.00017534,2]
[333988113,1722666717576,-500.0,0.00017534,2]
[333988114,1722666717585,-593.51,0.00017534,2]
[333988115,1722666717595,-766.07,0.00017534,2]
[333988116,1722666717606,-758.83,0.00017534,2]
[333988117,1722666717616,-500.0,0.00017534,2]
[333988118,1722666717627,-526.64004162,0.00017534,2]
[333988119,1722666717637,-1147.83,0.00017534,2]
[333988120,1722666717651,-500.0,0.00017534,2]
[333988121,1722666717661,-569.94,0.00017534,2]
[333988122,1722666717671,-523.17682549,0.00017534,2]
[333988123,1722666717683,-500.0,0.00017534,2]
[333988124,1722666717692,-500.0,0.00017534,2]
[333988125,1722666717703,-500.0,0.00017534,2]
[333988126,1722666717718,-500.0,0.00017534,2]
[333988127,1722666717728,-500.0,0.00017534,2]
[333988128,1722666717739,-500.0,0.00017534,2]
[333988129,1722666717748,-500.0,0.00017534,2]
[333988130,1722666717758,-500.0,0.00017534,2]
[333988131,1722666717769,-500.0,0.00017534,2]
[333988132,1722666717779,-500.0,0.00017534,2]
[333988133,1722666717789,-500.0,0.00017534,2]
[333988134,1722666717799,-500.0,0.00017534,2]
[333988135,1722666717809,-500.0,0.00017534,2]
[333988136,1722666717819,-523.03859292,0.00017534,2]
[333988137,1722666717829,-500.0,0.00017534,2]
[333988138,1722666717839,-500.0,0.00017534,2]
[333988139,1722666717849,-500.0,0.00017534,2]
[333988140,1722666717859,-800.64,0.00017534,2]
[333988141,1722666717869,-715.96,0.00017534,2]
[333988142,1722666717879,-500.0,0.00017534,2]
[333988143,1722666717889,-500.0,0.00017534,2]
[333988144,1722666717899,-429.81648717,0.00017534,2]
[333988145,1722666717910,-500.0,0.00017534,2]
[333988146,1722666717920,-500.0,0.00017534,2]
[333988147,1722666717930,-517.53,0.00017534,2]
[333988148,1722666717941,-500.0,0.00017534,2]
[333988149,1722666717951,-273.310976,0.00017534,2]
[333988150,1722666717964,-702.72,0.00017534,2]
[333988151,1722666717974,-500.0,0.00017534,2]
[333988152,1722666717985,-937.04,0.00017534,2]
[333988153,1722666717996,-500.0,0.00017534,2]
[333988154,1722666718006,-500.0,0.00017534,2]
[333988155,1722666718016,-500.0,0.00017534,2]
[333988156,1722666718026,-500.0,0.00017534,2]
[333988157,1722666718036,-500.0,0.00017534,2]
[333988158,1722666718046,-500.0,0.00017534,2]
[333988159,1722666718056,-500.0,0.00017534,2]
[333988160,1722666718066,-500.0,0.00017534,2]
[333988161,1722666718076,-500.0,0.00017534,2]
[333988162,1722666718310,-887.0,0.00017534,2]
[333988163,1722666718336,-500.0,0.00017534,2]
[333988164,1722666718347,-810.08,0.00017534,2]
[333988165,1722666718357,-500.0,0.00017534,2]
[333988166,1722666718367,-544.56,0.00017534,2]
[333988167,1722666718378,-537.30784029,0.00017534,2]
[333988168,1722666718387,-500.0,0.00017534,2]
[333988169,1722666718399,-603.96,0.00017534,2]
[333988170,1722666718409,-500.0,0.00017534,2]
[333988171,1722666718419,-500.0,0.00017534,2]
[333988172,1722666718429,-518.30870134,0.00017534,2]
[333988173,1722666718439,-500.0,0.00017534,2]
[333988174,1722666718449,-500.0,0.00017534,2]
[333988175,1722666718460,-500.0,0.00017534,2]
[333988176,1722666718469,-1120.78,0.00017534,2]
[333988177,1722666718479,-794.41,0.00017534,2]
[333988178,1722666718489,-500.0,0.00017534,2]
[333988179,1722666718499,-500.0,0.00017534,2]
[333988180,1722666718508,-531.60240025,0.00017534,2]
[333988181,1722666718518,-500.0,0.00017534,2]
[333988182,1722666718528,-1111.45,0.00017534,2]
[333988183,1722666718539,-509.41652021,0.00017534,2]
[333988184,1722666718549,-151.0,0.00017534,2]
[333988185,1722666718559,-500.0,0.00017534,2]
[333988186,1722666718569,-500.0,0.00017534,2]
[333988187,1722666718578,-633.16,0.00017534,2]
[333988188,1722666718588,-500.0,0.00017534,2]
[333988189,1722666718597,-526.54999976,0.00017534,2]
[333988190,1722666718607,-500.0,0.00017534,2]
[333988191,1722666718617,-500.0,0.00017534,2]
[333988192,1722666718626,-742.79,0.00017534,2]
[333988193,1722666718636,-500.0,0.00017534,2]
[333988194,1722666718649,-500.0,0.00017534,2]
[333988195,1722666718658,-500.0,0.00017534,2]
[333988196,1722666718668,-1144.59,0.00017534,2]
[333988197,1722666718677,-466.122221,0.00017534,2]
[333988198,1722666718693,-500.0,0.00017534,2]
[333988199,1722666718703,-500.0,0.00017534,2]
[333988200,1722666718712,-500.41,0.00017534,2]
[333988201,1722666718724,-466.122221,0.00017534,2]
[333988202,1722666718734,-591.2,0.00017534,2]
[333988203,1722666718744,-500.0,0.00017534,2]
[333988204,1722666718754,-500.0,0.00017534,2]
[333988205,1722666718763,-500.0,0.00017534,2]
[333988206,1722666718773,-800.028529,0.00017534,2]
[333988207,1722666718783,-500.0,0.00017534,2]
[333988208,1722666718792,-500.0,0.00017534,2]
[333988209,1722666718802,-500.0,0.00017534,2]
[333988210,1722666718811,-800.028529,0.00017534,2]
[333988211,1722666718821,-500.0,0.00017534,2]
[333988212,1722666718830,-667.95,0.00017534,2]
[333988213,1722666718840,-500.0,0.00017534,2]
[333988214,1722666718849,-710.02,0.00017534,2]
[333988215,1722666718858,-1017.87,0.00017534,2]
[333988216,1722666718868,-586.31,0.00017534,2]
[333988217,1722666718877,-500.0,0.00017534,2]
[333988218,1722666718887,-1326.03,0.00017534,2]
[333988219,1722666718896,-628.24,0.00017534,2]
[333988220,1722666718906,-689.07,0.00017534,2]
[333988221,1722666718915,-500.0,0.00017534,2]
[333988222,1722666718926,-500.0,0.00017534,2]
[333988223,1722666718936,-516.02544383,0.00017534,2]
[333988224,1722666718945,-554.01,0.00017534,2]
[333988225,1722666718955,-525.679238,0.00017534,2]
[333988226,1722666718965,-515.02000317,0.00017534,2]
[333988227,1722666718975,-500.0,0.00017534,2]
[333988228,1722666718984,-516.95157503,0.00017534,2]
[333988229,1722666718994,-525.679238,0.00017534,2]
[333988230,1722666719004,-835.2,0.00017534,2]
[333988231,1722666719013,-500.0,0.00017534,2]
[333988232,1722666719023,-500.0,0.00017534,2]
[333988233,1722666719032,-541.45,0.00017534,2]
[333988234,1722666719042,-2054.066293,0.00017534,2]
[333988235,1722666719051,-500.0,0.00017534,2]
[333988236,1722666719061,-500.0,0.00017534,2]
[333988237,1722666719070,-1060.7,0.00017534,2]
[333988238,1722666719080,-561.25,0.00017534,2]
[333988239,1722666719090,-573.22,0.00017534,2]
[333988240,1722666719100,-500.0,0.00017534,2]
[333988241,1722666719110,-500.0,0.00017534,2]
[333988242,1722666719120,-474.42058465,0.00017534,2]
[333988243,1722666719129,-686.47,0.00017534,2]
[333988244,1722666719139,-500.0,0.00017534,2]